[Event "*** Titled Tuesday 3|2 Blitz"]
[Site "Chess.com"]
[Date "2015.03.03"]
[Round "8"]
[White "PauloCesarCosta"]
[Black "bsmail"]
[Result "0-1"]
[WhiteElo "2035"]
[BlackElo "2044"]
[TimeControl "180+2"]
[EndTime "12:43:01 PST"]
[Termination "bsmail won by checkmate"]

1. Nf3 {[%clk 0:02:57.5]} 1... c5 {[%clk 0:02:58.1]} 2. c4 {[%clk 0:02:58.1]}
2... Nf6 {[%clk 0:02:57.8]} 3. g3 {[%clk 0:02:59.1]} 3... g6 {[%clk 0:02:59.1]}
4. Bg2 {[%clk 0:03:00.5]} 4... Bg7 {[%clk 0:03:01]} 5. d4 {[%clk 0:03:02]} 5...
cxd4 {[%clk 0:03:00.8]} 6. Nxd4 {[%clk 0:03:02.9]} 6... O-O {[%clk 0:03:02.4]}
7. O-O {[%clk 0:03:03.6]} 7... Qc7 {[%clk 0:03:03.6]} 8. Qd3 {[%clk 0:02:41.9]}
8... a6 {[%clk 0:03:01.4]} 9. Nc3 {[%clk 0:02:40.9]} 9... d6 {[%clk 0:03:01.9]}
10. Nb3 {[%clk 0:02:38.3]} 10... Nbd7 {[%clk 0:03:02.3]} 11. Nd5 {[%clk
0:02:36.5]} 11... Nxd5 {[%clk 0:03:00.8]} 12. cxd5 {[%clk 0:02:37.4]} 12... b5
{[%clk 0:03:01.6]} 13. Bg5 {[%clk 0:02:32.1]} 13... Ne5 {[%clk 0:03:00.3]} 14.
Qd1 {[%clk 0:01:54]} 14... h6 {[%clk 0:02:57.9]} 15. Rc1 {[%clk 0:01:49]} 15...
Qb6 {[%clk 0:02:58.2]} 16. Be3 {[%clk 0:01:39.3]} 16... Qb8 {[%clk 0:02:58.6]}
17. Bd4 {[%clk 0:01:35.8]} 17... Bd7 {[%clk 0:02:53.6]} 18. h3 {[%clk
0:01:28.6]} 18... a5 {[%clk 0:02:54.5]} 19. f4 {[%clk 0:01:27.2]} 19... Nc4
{[%clk 0:02:53.8]} 20. Bxg7 {[%clk 0:01:27.8]} 20... Kxg7 {[%clk 0:02:55]} 21.
Qd3 {[%clk 0:01:11]} 21... a4 {[%clk 0:02:47.5]} 22. Nd2 {[%clk 0:01:03.5]}
22... Qb6+ {[%clk 0:02:45.9]} 23. Kh2 {[%clk 0:00:54.2]} 23... Ne3 {[%clk
0:02:46.5]} 24. Rf3 {[%clk 0:00:42.2]} 24... Nxg2 {[%clk 0:02:45.3]} 25. Kxg2
{[%clk 0:00:43.1]} 25... Rfc8 {[%clk 0:02:46.1]} 26. Rff1 {[%clk 0:00:37.3]}
26... b4 {[%clk 0:02:41.6]} 27. Nf3 {[%clk 0:00:37]} 27... Bb5 {[%clk
0:02:32.6]} 28. Qd4+ {[%clk 0:00:35.5]} 28... Qxd4 {[%clk 0:02:32.3]} 29. Nxd4
{[%clk 0:00:36.8]} 29... Bc4 {[%clk 0:02:33.5]} 30. b3 {[%clk 0:00:35.2]} 30...
Bxd5+ {[%clk 0:02:32.6]} 31. Kf2 {[%clk 0:00:32.7]} 31... a3 {[%clk 0:02:33.7]}
32. Nc2 {[%clk 0:00:19.3]} 32... Rab8 {[%clk 0:02:34.1]} 33. Ne3 {[%clk
0:00:19.3]} 33... Be6 {[%clk 0:02:32.7]} 34. g4 {[%clk 0:00:15.2]} 34... f6
{[%clk 0:02:28.7]} 35. f5 {[%clk 0:00:15.4]} 35... Bf7 {[%clk 0:02:28.8]} 36.
Rfd1 {[%clk 0:00:14.6]} 36... g5 {[%clk 0:02:29.9]} 37. Ke1 {[%clk 0:00:12.5]}
37... h5 {[%clk 0:02:28.7]} 38. Kd2 {[%clk 0:00:12.9]} 38... h4 {[%clk
0:02:22.3]} 39. Rxc8 {[%clk 0:00:13.2]} 39... Rxc8 {[%clk 0:02:22.8]} 40. Rc1
{[%clk 0:00:14.7]} 40... Rxc1 {[%clk 0:02:08.9]} 41. Kxc1 {[%clk 0:00:15.1]}
41... e6 {[%clk 0:02:10.8]} 42. fxe6 {[%clk 0:00:12.3]} 42... Bxe6 {[%clk
0:02:10.8]} 43. Nc2 {[%clk 0:00:14.2]} 43... Bxg4 {[%clk 0:01:54.4]} 44. Nxb4
{[%clk 0:00:13.8]} 44... Bxh3 {[%clk 0:01:54.4]} 45. Nc2 {[%clk 0:00:11.9]}
45... g4 {[%clk 0:01:54.5]} 46. b4 {[%clk 0:00:12.5]} 46... g3 {[%clk
0:01:55.2]} 47. Ne3 {[%clk 0:00:10.9]} 47... f5 {[%clk 0:01:55.9]} 48. b5 {[%clk
0:00:09.8]} 48... f4 {[%clk 0:01:57.3]} 49. b6 {[%clk 0:00:08.2]} 49... Bc8
{[%clk 0:01:57.6]} 50. Nf5+ {[%clk 0:00:07.7]} 50... Kf6 {[%clk 0:01:54.3]} 51.
Nxd6 {[%clk 0:00:07.6]} 51... g2 {[%clk 0:01:53.8]} 52. Nxc8 {[%clk 0:00:07.7]}
52... g1=Q+ {[%clk 0:01:55.1]} 53. Kc2 {[%clk 0:00:08.3]} 53... Qc5+ {[%clk
0:01:55.7]} 54. Kd2 {[%clk 0:00:09.2]} 54... Qxc8 {[%clk 0:01:56.6]} 55. Kd3
{[%clk 0:00:10.6]} 55... Qd8+ {[%clk 0:01:56.5]} 56. Ke4 {[%clk 0:00:12]} 56...
Qxb6 {[%clk 0:01:58.4]} 57. Kxf4 {[%clk 0:00:12.3]} 57... Qb2 {[%clk 0:02:00.3]}
58. e4 {[%clk 0:00:12]} 58... Qxa2 {[%clk 0:02:02.2]} 59. e5+ {[%clk 0:00:13.4]}
59... Ke6 {[%clk 0:02:03.3]} 60. Kg4 {[%clk 0:00:15.3]} 60... Qf2 {[%clk
0:02:03.4]} 61. Kg5 {[%clk 0:00:14.3]} 61... Kxe5 {[%clk 0:02:03.9]} 62. Kg6
{[%clk 0:00:15.2]} 62... Qf5+ {[%clk 0:02:04.1]} 63. Kg7 {[%clk 0:00:16.8]}
63... Ke6 {[%clk 0:02:03.3]} 64. Kg8 {[%clk 0:00:16.6]} 64... Qf7+ {[%clk
0:02:00.7]} 65. Kh8 {[%clk 0:00:17.2]} 65... Qe7 {[%clk 0:02:02.6]} 66. Kg8
{[%clk 0:00:18.1]} 66... Kf6 {[%clk 0:02:03.4]} 67. Kh8 {[%clk 0:00:19]} 67...
Qg7# {[%clk 0:02:01]} 0-1

[Event "*** Titled Tuesday 3|2 Blitz"]
[Site "Chess.com"]
[Date "2015.03.03"]
[Round "8"]
[White "AUSSIE_PINOY"]
[Black "DanielRensch"]
[Result "1-0"]
[WhiteElo "2227"]
[BlackElo "2247"]
[TimeControl "180+2"]
[EndTime "12:43:11 PST"]
[Termination "AUSSIE_PINOY won on time"]

1. d4 {[%clk 0:03:00]} 1... Nf6 {[%clk 0:02:58.7]} 2. Nf3 {[%clk 0:03:00.9]}
2... c5 {[%clk 0:02:59.1]} 3. d5 {[%clk 0:03:01.5]} 3... b5 {[%clk 0:02:59.9]}
4. e4 {[%clk 0:02:48.7]} 4... Nxe4 {[%clk 0:02:44.9]} 5. Bd3 {[%clk 0:02:42.8]}
5... Nf6 {[%clk 0:02:41.3]} 6. Bxb5 {[%clk 0:02:42.7]} 6... g6 {[%clk 0:02:40]}
7. c4 {[%clk 0:02:43]} 7... Bg7 {[%clk 0:02:39.4]} 8. Nc3 {[%clk 0:02:44.1]}
8... O-O {[%clk 0:02:39.8]} 9. O-O {[%clk 0:02:44.9]} 9... d6 {[%clk 0:02:41.1]}
10. h3 {[%clk 0:02:45.2]} 10... Bf5 {[%clk 0:02:34.7]} 11. Re1 {[%clk
0:02:45.3]} 11... Ne8 {[%clk 0:02:27.1]} 12. Qe2 {[%clk 0:02:24.5]} 12... a6
{[%clk 0:02:25.4]} 13. Ba4 {[%clk 0:02:14.6]} 13... Ra7 {[%clk 0:02:26.3]} 14.
Bg5 {[%clk 0:02:11.1]} 14... Bf6 {[%clk 0:02:23.8]} 15. Bh6 {[%clk 0:02:02.6]}
15... Bg7 {[%clk 0:02:24.6]} 16. Bxg7 {[%clk 0:01:59.6]} 16... Nxg7 {[%clk
0:02:17.8]} 17. Qe3 {[%clk 0:01:58.5]} 17... e5 {[%clk 0:02:09.6]} 18. dxe6
{[%clk 0:01:54.9]} 18... Bxe6 {[%clk 0:02:07.3]} 19. b3 {[%clk 0:01:45.2]} 19...
Nd7 {[%clk 0:01:59.5]} 20. Bxd7 {[%clk 0:01:42]} 20... Rxd7 {[%clk 0:01:59.2]}
21. Rad1 {[%clk 0:01:41.9]} 21... Re8 {[%clk 0:01:55.8]} 22. Qh6 {[%clk
0:01:19.5]} 22... Nf5 {[%clk 0:01:53]} 23. Qf4 {[%clk 0:01:19.5]} 23... Rde7
{[%clk 0:01:19.4]} 24. Ne4 {[%clk 0:01:14.2]} 24... Rd7 {[%clk 0:01:07.8]} 25.
g4 {[%clk 0:01:10.2]} 25... Ng7 {[%clk 0:00:52.6]} 26. Nf6+ {[%clk 0:01:02.8]}
26... Kh8 {[%clk 0:00:53.8]} 27. Nxe8 {[%clk 0:00:56.7]} 27... Nxe8 {[%clk
0:00:52.2]} 28. Ng5 {[%clk 0:00:51.7]} 28... Ng7 {[%clk 0:00:43.7]} 29. Ne4
{[%clk 0:00:49.2]} 29... h5 {[%clk 0:00:36.1]} 30. f3 {[%clk 0:00:40.7]} 30...
Ne8 {[%clk 0:00:24.2]} 31. Kg2 {[%clk 0:00:33.6]} 31... Kg7 {[%clk 0:00:22.2]}
32. Re2 {[%clk 0:00:31.3]} 32... Qh4 {[%clk 0:00:21.4]} 33. Qg5 {[%clk
0:00:23.2]} 33... Qxg5 {[%clk 0:00:20.2]} 34. Nxg5 {[%clk 0:00:24.2]} 34... Nc7
{[%clk 0:00:21.4]} 35. Red2 {[%clk 0:00:23.7]} 35... d5 {[%clk 0:00:21.6]} 36.
cxd5 {[%clk 0:00:23.1]} 36... Bxd5 {[%clk 0:00:21.5]} 37. Ne4 {[%clk 0:00:22.5]}
37... hxg4 {[%clk 0:00:21.3]} 38. hxg4 {[%clk 0:00:23.1]} 38... a5 {[%clk
0:00:10.2]} 39. Nc3 {[%clk 0:00:22.7]} 39... Ne6 {[%clk 0:00:07.2]} 40. Nxd5
{[%clk 0:00:22.7]} 40... a4 {[%clk 0:00:05.6]} 41. Kg3 {[%clk 0:00:22.7]} 41...
axb3 {[%clk 0:00:06.3]} 42. axb3 {[%clk 0:00:23.9]} 42... Rb7 {[%clk 0:00:07.8]}
43. Rd3 {[%clk 0:00:24.3]} 43... Nd4 {[%clk 0:00:09]} 44. Rxd4 {[%clk
0:00:25.1]} 44... cxd4 {[%clk 0:00:10]} 45. Rd3 {[%clk 0:00:26.1]} 45... Rd7
{[%clk 0:00:09.9]} 46. Nf4 {[%clk 0:00:26.4]} 1-0

[Event "*** Titled Tuesday 3|2 Blitz"]
[Site "Chess.com"]
[Date "2015.03.03"]
[Round "8"]
[White "Aragon"]
[Black "SuPeR_Fm"]
[Result "0-1"]
[WhiteElo "1960"]
[BlackElo "2338"]
[TimeControl "180+2"]
[EndTime "12:44:56 PST"]
[Termination "SuPeR_Fm won by resignation"]

1. e4 {[%clk 0:03:00]} 1... e5 {[%clk 0:02:45.2]} 2. d4 {[%clk 0:02:58.7]} 2...
exd4 {[%clk 0:02:42.9]} 3. c3 {[%clk 0:02:59.2]} 3... dxc3 {[%clk 0:02:44.8]} 4.
Bc4 {[%clk 0:02:59.2]} 4... cxb2 {[%clk 0:02:44]} 5. Bxb2 {[%clk 0:02:59.6]}
5... d5 {[%clk 0:02:45.9]} 6. Bxd5 {[%clk 0:02:59.8]} 6... Nf6 {[%clk
0:02:46.5]} 7. Nc3 {[%clk 0:02:51.2]} 7... Nxd5 {[%clk 0:02:40]} 8. Nxd5 {[%clk
0:02:51]} 8... Nc6 {[%clk 0:02:37.5]} 9. Qf3 {[%clk 0:02:31.2]} 9... Be6 {[%clk
0:02:26.5]} 10. O-O-O {[%clk 0:02:28.1]} 10... Qg5+ {[%clk 0:02:26]} 11. Kb1
{[%clk 0:02:26.4]} 11... O-O-O {[%clk 0:02:26.5]} 12. Nh3 {[%clk 0:02:18.2]}
12... Qg4 {[%clk 0:02:22.6]} 13. Nhf4 {[%clk 0:02:08.6]} 13... Qxf3 {[%clk
0:02:21.5]} 14. gxf3 {[%clk 0:02:10.5]} 14... Rg8 {[%clk 0:02:15.4]} 15. Rhg1
{[%clk 0:02:06.4]} 15... Bd6 {[%clk 0:01:53.7]} 16. Nh5 {[%clk 0:01:58.6]} 16...
Bxh2 {[%clk 0:01:42.3]} 17. Rh1 {[%clk 0:01:53.1]} 17... Be5 {[%clk 0:01:41.2]}
18. Bxe5 {[%clk 0:01:41.6]} 18... Nxe5 {[%clk 0:01:43.1]} 19. Ne7+ {[%clk
0:01:42.2]} 19... Kb8 {[%clk 0:01:41.9]} 20. Nxg8 {[%clk 0:01:41.5]} 20... Rxg8
{[%clk 0:01:43.8]} 21. f4 {[%clk 0:01:36.6]} 21... Ng4 {[%clk 0:01:31.9]} 22. f5
{[%clk 0:01:24.6]} 22... Bc8 {[%clk 0:01:26.5]} 23. Rd2 {[%clk 0:01:24.7]} 23...
g6 {[%clk 0:01:20.1]} 24. Ng3 {[%clk 0:01:06.7]} 24... h5 {[%clk 0:01:17.5]} 25.
f3 {[%clk 0:00:46]} 25... Ne5 {[%clk 0:01:15.7]} 26. f4 {[%clk 0:00:41.9]} 26...
Nc4 {[%clk 0:01:10.5]} 27. Rd4 {[%clk 0:00:42.1]} 27... Nd6 {[%clk 0:01:09.5]}
28. fxg6 {[%clk 0:00:40.8]} 28... fxg6 {[%clk 0:01:11.4]} 29. e5 {[%clk
0:00:35.9]} 29... Nf5 {[%clk 0:01:11]} 30. Nxf5 {[%clk 0:00:36.5]} 30... Bxf5+
{[%clk 0:01:12.9]} 31. Kb2 {[%clk 0:00:38.1]} 31... Kc8 {[%clk 0:01:13.4]} 32.
Kc3 {[%clk 0:00:36.4]} 32... Rh8 {[%clk 0:01:05.1]} 33. Rh4 {[%clk 0:00:35.9]}
33... b6 {[%clk 0:00:59.9]} 34. Rd2 {[%clk 0:00:34.9]} 34... Rf8 {[%clk
0:00:59.7]} 35. Rg2 {[%clk 0:00:31.1]} 35... Be4 {[%clk 0:00:59.6]} 36. Re2
{[%clk 0:00:29.7]} 36... Bf5 {[%clk 0:01:01.2]} 37. Rd2 {[%clk 0:00:30.7]} 37...
a5 {[%clk 0:00:59.8]} 38. Rd5 {[%clk 0:00:25.7]} 38... Bg4 {[%clk 0:01:00.4]}
39. Rd4 {[%clk 0:00:25.8]} 39... Kb7 {[%clk 0:01:00]} 40. Kd2 {[%clk 0:00:26.4]}
40... Kc6 {[%clk 0:00:57.4]} 41. Ke3 {[%clk 0:00:27.3]} 41... Be6 {[%clk
0:00:58.9]} 42. Rh2 {[%clk 0:00:26.7]} 42... Kb7 {[%clk 0:00:58.3]} 43. Rc2
{[%clk 0:00:27.3]} 43... h4 {[%clk 0:00:58]} 44. Rh2 {[%clk 0:00:26.9]} 44... h3
{[%clk 0:00:58.9]} 45. Kf3 {[%clk 0:00:25.4]} 45... g5 {[%clk 0:00:54.5]} 46.
Kg3 {[%clk 0:00:26.6]} 46... gxf4+ {[%clk 0:00:53.9]} 47. Rxf4 {[%clk
0:00:28.5]} 47... Rg8+ {[%clk 0:00:54.6]} 48. Kf3 {[%clk 0:00:28.8]} 48... Rg2
{[%clk 0:00:50.8]} 49. Rxg2 {[%clk 0:00:29]} 49... Bd5+ {[%clk 0:00:52.4]} 50.
Kg3 {[%clk 0:00:24.7]} 50... hxg2 {[%clk 0:00:54.3]} 51. Kf2 {[%clk 0:00:24.7]}
51... c5 {[%clk 0:00:48.4]} 52. Rf6 {[%clk 0:00:23.4]} 52... a4 {[%clk
0:00:49.4]} 53. Rd6 {[%clk 0:00:24]} 53... Bxa2 {[%clk 0:00:49.2]} 54. e6 {[%clk
0:00:25.3]} 54... Kc7 {[%clk 0:00:38.9]} 55. e7 {[%clk 0:00:25.2]} 55... Bf7
{[%clk 0:00:40.4]} 56. Rd8 {[%clk 0:00:25]} 56... b5 {[%clk 0:00:36]} 57. e8=Q
{[%clk 0:00:24.6]} 57... Bxe8 {[%clk 0:00:36.5]} 58. Rxe8 {[%clk 0:00:25.4]}
58... a3 {[%clk 0:00:37.9]} 59. Kxg2 {[%clk 0:00:23.2]} 59... b4 {[%clk
0:00:38.2]} 60. Kf2 {[%clk 0:00:22.1]} 60... a2 {[%clk 0:00:38.7]} 61. Ra8
{[%clk 0:00:21.6]} 61... b3 {[%clk 0:00:38.7]} 62. Ke2 {[%clk 0:00:22.4]} 62...
b2 {[%clk 0:00:37.7]} 0-1

[Event "*** Titled Tuesday 3|2 Blitz"]
[Site "Chess.com"]
[Date "2015.03.03"]
[Round "8"]
[White "HansCoolNiemann"]
[Black "LADIESGET2KNOWME"]
[Result "0-1"]
[WhiteElo "1833"]
[BlackElo "2257"]
[TimeControl "180+2"]
[EndTime "12:45:45 PST"]
[Termination "LADIESGET2KNOWME won by checkmate"]

1. d4 {[%clk 0:03:00]} 1... Nf6 {[%clk 0:02:59.8]} 2. c4 {[%clk 0:03:01.1]} 2...
g6 {[%clk 0:03:01.7]} 3. Nc3 {[%clk 0:03:01.9]} 3... Bg7 {[%clk 0:03:03.6]} 4.
e4 {[%clk 0:03:03]} 4... d6 {[%clk 0:03:05.5]} 5. Nf3 {[%clk 0:03:04.2]} 5...
O-O {[%clk 0:03:07.4]} 6. Be2 {[%clk 0:03:05.5]} 6... e5 {[%clk 0:03:09.3]} 7.
dxe5 {[%clk 0:03:07.4]} 7... dxe5 {[%clk 0:03:11.2]} 8. Qxd8 {[%clk 0:03:08.8]}
8... Rxd8 {[%clk 0:03:13.1]} 9. Bg5 {[%clk 0:03:09.9]} 9... Nbd7 {[%clk
0:03:14.7]} 10. O-O-O {[%clk 0:03:10.9]} 10... Rf8 {[%clk 0:03:15.4]} 11. Ne1
{[%clk 0:03:07.5]} 11... c6 {[%clk 0:03:14.3]} 12. f3 {[%clk 0:03:08.4]} 12...
Re8 {[%clk 0:03:15.2]} 13. Be3 {[%clk 0:03:08.4]} 13... Nf8 {[%clk 0:03:16]} 14.
Nc2 {[%clk 0:03:09]} 14... Ne6 {[%clk 0:03:17.5]} 15. g3 {[%clk 0:03:10.2]}
15... Bf8 {[%clk 0:03:14.9]} 16. Rd2 {[%clk 0:03:08.6]} 16... Bc5 {[%clk
0:03:15.6]} 17. Bxc5 {[%clk 0:03:08]} 17... Nxc5 {[%clk 0:03:17.5]} 18. b4
{[%clk 0:03:08.2]} 18... Ne6 {[%clk 0:03:16.9]} 19. Rhd1 {[%clk 0:03:09.7]}
19... Kf8 {[%clk 0:03:12.8]} 20. c5 {[%clk 0:03:05.5]} 20... Ke7 {[%clk
0:03:12.7]} 21. Kb2 {[%clk 0:03:06.1]} 21... Bd7 {[%clk 0:03:10.8]} 22. Ne3
{[%clk 0:03:06.1]} 22... Nd4 {[%clk 0:03:07.6]} 23. Nc4 {[%clk 0:03:05.1]} 23...
Nxe2 {[%clk 0:02:59.7]} 24. Nxe2 {[%clk 0:02:58]} 24... Kd8 {[%clk 0:02:51.4]}
25. Nd6 {[%clk 0:02:54.8]} 25... Re7 {[%clk 0:02:52.4]} 26. Nxb7+ {[%clk
0:02:55.4]} 26... Kc7 {[%clk 0:02:53.9]} 27. Nd6 {[%clk 0:02:56.5]} 27... Rb8
{[%clk 0:02:54.8]} 28. Kc3 {[%clk 0:02:57.3]} 28... a5 {[%clk 0:02:55]} 29. a3
{[%clk 0:02:57.5]} 29... Be6 {[%clk 0:02:55.6]} 30. Rb2 {[%clk 0:02:49]} 30...
axb4+ {[%clk 0:02:54.9]} 31. Rxb4 {[%clk 0:02:50]} 31... Nd7 {[%clk 0:02:54.1]}
32. Rxb8 {[%clk 0:02:50.1]} 32... Kxb8 {[%clk 0:02:56]} 33. Kb4 {[%clk
0:02:49.3]} 33... Kc7 {[%clk 0:02:55.8]} 34. Nc3 {[%clk 0:02:49.7]} 34... f5
{[%clk 0:02:53.1]} 35. Na4 {[%clk 0:02:40.4]} 35... Rg7 {[%clk 0:02:53.4]} 36.
Nc4 {[%clk 0:02:34.9]} 36... Rg8 {[%clk 0:02:48.2]} 37. Ncb6 {[%clk 0:02:33.9]}
37... fxe4 {[%clk 0:02:42.8]} 38. fxe4 {[%clk 0:02:31.5]} 38... Rf8 {[%clk
0:02:44.2]} 39. Rd6 {[%clk 0:02:30.8]} 39... Bh3 {[%clk 0:02:44.8]} 40. Nxd7
{[%clk 0:02:29.4]} 40... Bxd7 {[%clk 0:02:46.7]} 41. Nb6 {[%clk 0:02:30.7]}
41... Bg4 {[%clk 0:02:46.7]} 42. Rd2 {[%clk 0:02:18.8]} 42... Rf1 {[%clk
0:02:44.1]} 43. Nc4 {[%clk 0:02:18.9]} 43... Re1 {[%clk 0:02:37.7]} 44. Rf2
{[%clk 0:02:04.1]} 44... Rxe4 {[%clk 0:02:34.8]} 45. Rf7+ {[%clk 0:02:04.4]}
45... Kb8 {[%clk 0:02:33.3]} 46. Kc3 {[%clk 0:02:04.3]} 46... Rxc4+ {[%clk
0:02:26.2]} 47. Kxc4 {[%clk 0:02:04.1]} 47... Be6+ {[%clk 0:02:27.6]} 48. Kd3
{[%clk 0:02:05.7]} 48... Bxf7 {[%clk 0:02:27.7]} 49. Ke4 {[%clk 0:02:07.6]}
49... Kc7 {[%clk 0:02:17]} 50. Kxe5 {[%clk 0:02:09.5]} 50... Kd7 {[%clk
0:02:18]} 51. Kf6 {[%clk 0:02:11.1]} 51... Ke8 {[%clk 0:02:06.6]} 52. a4 {[%clk
0:02:11.9]} 52... Bc4 {[%clk 0:01:53.6]} 53. Kg7 {[%clk 0:02:12.5]} 53... Ke7
{[%clk 0:01:53.2]} 54. Kxh7 {[%clk 0:02:13.6]} 54... Kf6 {[%clk 0:01:53.7]} 55.
Kh6 {[%clk 0:02:11.7]} 55... Bd3 {[%clk 0:01:27.4]} 56. a5 {[%clk 0:02:08.9]}
56... Ke6 {[%clk 0:01:10.7]} 57. a6 {[%clk 0:02:07.1]} 57... Bxa6 {[%clk
0:01:11]} 58. Kxg6 {[%clk 0:02:07.5]} 58... Kd5 {[%clk 0:01:12.1]} 59. h4 {[%clk
0:02:08.9]} 59... Kxc5 {[%clk 0:01:13.3]} 60. h5 {[%clk 0:02:10.6]} 60... Kd4
{[%clk 0:01:02.6]} 61. h6 {[%clk 0:02:10.9]} 61... c5 {[%clk 0:01:03.2]} 62. g4
{[%clk 0:02:09.4]} 62... Bd3+ {[%clk 0:01:03.9]} 63. Kg7 {[%clk 0:02:10]} 63...
c4 {[%clk 0:01:04.5]} 64. g5 {[%clk 0:02:11.2]} 64... c3 {[%clk 0:01:06]} 65. g6
{[%clk 0:02:12.9]} 65... c2 {[%clk 0:01:03.9]} 66. h7 {[%clk 0:02:14.2]} 66...
c1=Q {[%clk 0:01:04.9]} 67. h8=Q {[%clk 0:02:15.2]} 67... Qc7+ {[%clk
0:01:05.4]} 68. Kh6+ {[%clk 0:02:13.8]} 68... Ke3 {[%clk 0:00:58.6]} 69. Qe8+
{[%clk 0:02:12.3]} 69... Be4 {[%clk 0:00:55.7]} 70. g7 {[%clk 0:02:09.3]} 70...
Qf4+ {[%clk 0:00:36.5]} 71. Kh5 {[%clk 0:02:07.5]} 71... Qf5+ {[%clk 0:00:31.9]}
72. Kh6 {[%clk 0:02:01.3]} 72... Qh7+ {[%clk 0:00:28]} 73. Kg5 {[%clk
0:02:02.7]} 73... Qxg7+ {[%clk 0:00:28.9]} 74. Kh4 {[%clk 0:02:04.3]} 74... Qh6+
{[%clk 0:00:18.7]} 75. Qh5 {[%clk 0:02:01.7]} 75... Qe6 {[%clk 0:00:11.7]} 76.
Qg5+ {[%clk 0:02:01.2]} 76... Kd3 {[%clk 0:00:11.8]} 77. Qg3+ {[%clk 0:02:00.5]}
77... Kc4 {[%clk 0:00:09.7]} 78. Qg4 {[%clk 0:01:57.9]} 78... Qh6+ {[%clk
0:00:08.2]} 79. Qh5 {[%clk 0:01:58.5]} 79... Qe3 {[%clk 0:00:07]} 80. Qf7+
{[%clk 0:01:56.8]} 80... Kc3 {[%clk 0:00:06.4]} 81. Qf6+ {[%clk 0:01:56.6]}
81... Kc2 {[%clk 0:00:06.1]} 82. Qg5 {[%clk 0:01:54.5]} 82... Qf2+ {[%clk
0:00:05.4]} 83. Qg3 {[%clk 0:01:55]} 83... Qf6+ {[%clk 0:00:05.2]} 84. Qg5
{[%clk 0:01:55.8]} 84... Qe6 {[%clk 0:00:04.3]} 85. Qg4 {[%clk 0:01:54.3]} 85...
Qe5 {[%clk 0:00:03.9]} 86. Qc8+ {[%clk 0:01:52.6]} 86... Kd2 {[%clk 0:00:04.4]}
87. Qd7+ {[%clk 0:01:52]} 87... Ke3 {[%clk 0:00:04.6]} 88. Qh3+ {[%clk
0:01:51.6]} 88... Bf3 {[%clk 0:00:05.2]} 89. Qf1 {[%clk 0:01:38.3]} 89... Qf6+
{[%clk 0:00:04.4]} 90. Kg3 {[%clk 0:01:36.8]} 90... Qg5+ {[%clk 0:00:04.2]} 91.
Kh2 {[%clk 0:01:36.7]} 91... Qf4+ {[%clk 0:00:05.1]} 92. Kh3 {[%clk 0:01:33.1]}
92... Bg4+ {[%clk 0:00:06]} 93. Kg2 {[%clk 0:01:33.8]} 93... Bh3+ {[%clk
0:00:07]} 94. Kxh3 {[%clk 0:01:35.2]} 94... Qxf1+ {[%clk 0:00:08.4]} 95. Kg4
{[%clk 0:01:37.1]} 95... Qf4+ {[%clk 0:00:08.9]} 96. Kh5 {[%clk 0:01:37.9]}
96... Qg3 {[%clk 0:00:09.9]} 97. Kh6 {[%clk 0:01:39.8]} 97... Kf4 {[%clk
0:00:11.2]} 98. Kh7 {[%clk 0:01:41.7]} 98... Kf5 {[%clk 0:00:12.9]} 99. Kh6
{[%clk 0:01:43.6]} 99... Qg6# {[%clk 0:00:12.8]} 0-1

[Event "*** Titled Tuesday 3|2 Blitz"]
[Site "Chess.com"]
[Date "2015.03.03"]
[Round "9"]
[White "MinhGTrAn"]
[Black "Brandon_Clarke"]
[Result "1-0"]
[WhiteElo "2428"]
[BlackElo "2318"]
[TimeControl "180+2"]
[EndTime "12:50:28 PST"]
[Termination "MinhGTrAn won by resignation"]

1. Nf3 {[%clk 0:03:00]} 1... Nf6 {[%clk 0:02:57.2]} 2. b3 {[%clk 0:02:59.6]}
2... g6 {[%clk 0:02:58.2]} 3. Bb2 {[%clk 0:03:01.5]} 3... Bg7 {[%clk 0:02:59.6]}
4. e3 {[%clk 0:03:03.4]} 4... O-O {[%clk 0:03:00.8]} 5. Be2 {[%clk 0:03:05]}
5... a6 {[%clk 0:03:01.3]} 6. O-O {[%clk 0:03:06.5]} 6... b5 {[%clk 0:03:02.1]}
7. a4 {[%clk 0:03:08]} 7... b4 {[%clk 0:03:01.5]} 8. a5 {[%clk 0:03:08.9]} 8...
Bb7 {[%clk 0:03:02.4]} 9. d4 {[%clk 0:03:10.2]} 9... d6 {[%clk 0:03:03.2]} 10.
Nbd2 {[%clk 0:03:06.2]} 10... c5 {[%clk 0:03:04.1]} 11. Nc4 {[%clk 0:03:06.7]}
11... Nbd7 {[%clk 0:03:04.3]} 12. dxc5 {[%clk 0:03:02.2]} 12... dxc5 {[%clk
0:03:04.5]} 13. Nfe5 {[%clk 0:03:00.5]} 13... Ne4 {[%clk 0:02:44.2]} 14. Qxd7
{[%clk 0:02:49.2]} 14... Qxd7 {[%clk 0:02:37.8]} 15. Nxd7 {[%clk 0:02:51.1]}
15... Bxb2 {[%clk 0:02:35]} 16. Nxb2 {[%clk 0:02:53]} 16... Rfd8 {[%clk
0:02:34.3]} 17. Nb6 {[%clk 0:02:54.1]} 17... Nc3 {[%clk 0:02:34.4]} 18. Bd3
{[%clk 0:02:44.9]} 18... Ra7 {[%clk 0:02:34.1]} 19. N2a4 {[%clk 0:02:39]} 1-0

[Event "*** Titled Tuesday 3|2 Blitz"]
[Site "Chess.com"]
[Date "2015.03.03"]
[Round "9"]
[White "Rijeka1999"]
[Black "Aragon"]
[Result "0-1"]
[WhiteElo "2218"]
[BlackElo "1973"]
[TimeControl "180+2"]
[EndTime "12:52:08 PST"]
[Termination "Aragon won by resignation"]

1. e4 {[%clk 0:03:00]} 1... d5 {[%clk 0:02:57.1]} 2. exd5 {[%clk 0:03:00.4]}
2... Qxd5 {[%clk 0:02:56.5]} 3. Nf3 {[%clk 0:03:01.1]} 3... Qd6 {[%clk
0:02:56.3]} 4. Nc3 {[%clk 0:03:00.8]} 4... c6 {[%clk 0:02:56.8]} 5. d4 {[%clk
0:03:01.5]} 5... Bg4 {[%clk 0:02:57.1]} 6. Be2 {[%clk 0:02:56.6]} 6... Nd7
{[%clk 0:02:51.6]} 7. Be3 {[%clk 0:02:56.7]} 7... Ngf6 {[%clk 0:02:48]} 8. Qd2
{[%clk 0:02:55.9]} 8... e6 {[%clk 0:02:46.8]} 9. h3 {[%clk 0:02:55.6]} 9... Bf5
{[%clk 0:02:42.2]} 10. g4 {[%clk 0:02:54.7]} 10... Bg6 {[%clk 0:02:42.3]} 11.
O-O-O {[%clk 0:02:56.3]} 11... Qc7 {[%clk 0:02:41.7]} 12. Bf4 {[%clk 0:02:45.5]}
12... Bd6 {[%clk 0:02:41.7]} 13. Bg5 {[%clk 0:02:45.3]} 13... h6 {[%clk
0:02:35.2]} 14. Be3 {[%clk 0:02:45.5]} 14... Qa5 {[%clk 0:02:13]} 15. a3 {[%clk
0:02:28.5]} 15... Nd5 {[%clk 0:02:03.4]} 16. Nxd5 {[%clk 0:02:28.5]} 16... Qxd2+
{[%clk 0:02:03.3]} 17. Nxd2 {[%clk 0:02:25.5]} 17... cxd5 {[%clk 0:02:05.2]} 18.
f4 {[%clk 0:02:26]} 18... Rc8 {[%clk 0:01:57.3]} 19. c3 {[%clk 0:01:35.2]} 19...
Rxc3+ {[%clk 0:01:56.2]} 0-1